bitfinex/quotes_BTCUSD_20251217
["timestamp","ask_amount","ask_price","bid_price","bid_amount"]
[1765990255981,0.5684,86668.0,86659.0,0.00161]
[1765990256206,0.2517,86668.0,86659.0,0.00161]
[1765990256406,1.0,86673.0,86660.0,0.24232597]
[1765990256623,0.002,86668.0,86661.0,0.01153921]
[1765990256855,0.72305373,86681.0,86661.0,0.01153921]
[1765990256856,1.12992471,86690.0,86662.0,0.01384689]
[1765990257059,1.0,86688.0,86678.0,0.00031727]
[1765990257223,1.0,86688.0,86674.0,0.01153748]
[1765990257430,1.0,86686.0,86673.0,0.01153761]
[1765990257626,1.0,86686.0,86660.0,0.50794]
[1765990257828,1.69412,86682.0,86660.0,0.50794]
[1765990258043,1.0,86681.0,86661.0,0.23078421]
[1765990258218,1.0,86681.0,86660.0,0.50794]
[1765990258219,1.03923471,86680.0,86660.0,0.50794]
[1765990258419,1.0,86679.0,86660.0,0.50794]
[1765990258660,1.0,86671.0,86655.0,0.01896]
[1765990258860,0.0907,86668.0,86655.0,0.0004]
[1765990259067,1.0,86667.0,86655.0,0.0004]
[1765990259275,1.0,86667.0,86651.0,0.0004]
[1765990259276,2.03923471,86665.0,86651.0,0.0004]
[1765990259445,0.10902579,86666.0,86626.0,0.50794]
[1765990259446,0.0907,86652.0,86626.0,0.50794]
[1765990259647,1.69412,86653.0,86626.0,0.50794]
[1765990259648,1.01154081,86649.0,86626.0,0.50794]
[1765990259845,1.0,86639.0,86625.0,0.0004]
[1765990260422,1.05779471,86640.0,86625.0,0.0004]
[1765990260423,1.0,86634.0,86625.0,0.0004]
[1765990260618,0.01856,86640.0,86615.0,0.23090632]
[1765990260619,1.0,86630.0,86615.0,0.23090632]
[1765990260825,0.51955,86641.0,86615.0,0.23090632]
[1765990260826,0.2696,86627.0,86615.0,0.23090688]
[1765990261036,0.01856,86636.0,86619.0,0.50794]
[1765990261241,1.03923471,86630.0,86610.0,0.50794]
[1765990261443,1.0,86629.0,86611.0,0.00201]
[1765990261655,1.0,86620.0,86611.0,0.0004]
[1765990261868,1.0,86618.0,86594.0,0.71705]
[1765990262069,1.0,86616.0,86604.0,0.01154681]
[1765990262273,1.69412,86616.0,86594.0,0.01315814]
[1765990262480,1.0,86617.0,86597.0,0.50794]
[1765990262690,1.0,86617.0,86598.0,0.01154761]
[1765990262881,1.0,86617.0,86597.0,0.50794]
[1765990263188,1.0,86616.0,86597.0,0.51458748]
[1765990263386,1.0,86615.0,86597.0,0.50303974]
[1765990263589,1.0,86615.0,86607.0,0.01154641]
[1765990263590,0.5574,86615.0,86607.0,0.01154641]
[1765990263887,1.0,86614.0,86604.0,0.01154681]
[1765990264109,0.00161287,86614.0,86595.0,0.01154801]
[1765990264309,1.0,86611.0,86596.0,0.01154787]
[1765990264521,1.0,86611.0,86589.0,0.01154881]
[1765990264522,1.0,86610.0,86589.0,0.01154881]
[1765990264732,1.0,86604.0,86597.0,0.001]
[1765990264920,0.01351176,86616.0,86602.0,0.01154707]
[1765990265130,1.0,86614.0,86605.0,0.23093247]
[1765990265420,0.01351176,86616.0,86604.0,0.24248225]
[1765990265643,0.01351176,86616.0,86601.0,0.51948721]
[1765990265847,0.70566294,86633.0,86610.0,0.01154601]
[1765990265848,0.1,86629.0,86610.0,0.01154601]
[1765990266042,0.69412,86619.0,86603.0,0.01154694]
[1765990266251,0.1,86629.0,86605.0,0.01154667]
[1765990266397,0.01351176,86632.0,86605.0,0.01154667]
[1765990266398,0.79412,86619.0,86605.0,0.00161287]
[1765990266607,0.1,86618.0,86600.0,0.01154734]
[1765990266834,1.03923471,86610.0,86591.0,0.00161287]
[1765990267040,0.1,86600.0,86580.0,0.0001]
[1765990267384,1.03923471,86590.0,86580.0,0.00171287]
[1765990267670,0.1,86608.0,86586.0,0.01154921]
[1765990267798,0.71268,86612.0,86593.0,0.01154827]
[1765990267799,0.1,86606.0,86593.0,0.01154827]
[1765990268044,0.1,86606.0,86584.0,0.2309891]
[1765990268045,0.1,86624.0,86605.0,0.00161287]
[1765990268244,0.05001839,86643.0,86605.0,0.00161287]
[1765990268245,0.00848397,86625.0,86613.0,0.01154561]
[1765990268446,1.03923471,86630.0,86615.0,0.01154534]
[1765990268645,0.69412,86638.0,86624.0,0.01154414]
[1765990268983,0.8247,86639.0,86624.0,0.00161287]
[1765990269564,0.67686,86633.0,86606.0,0.01856]
[1765990269762,1.03923471,86620.0,86606.0,0.01856]
[1765990270023,1.03923471,86620.0,86609.0,0.01154614]
[1765990270151,0.67686,86633.0,86608.0,0.00186704]
[1765990270152,1.0,86629.0,86608.0,0.00186704]
[1765990270994,1.03923471,86620.0,86608.0,0.00186704]
[1765990271170,0.001,86630.0,86609.0,0.01154614]
[1765990271171,1.0,86629.0,86609.0,0.01154614]
[1765990271376,1.03923471,86630.0,86610.0,0.49706]
[1765990271577,0.69542,86633.0,86610.0,0.49706]
[1765990271578,0.4291,86629.0,86614.0,0.01154547]
[1765990271776,0.01856,86638.0,86617.0,0.49706]
[1765990272004,0.01856,86638.0,86614.0,0.00161287]
[1765990272005,1.0,86629.0,86614.0,0.00161287]
[1765990272173,0.0907,86634.0,86615.0,0.01154534]
[1765990272371,1.03923471,86630.0,86615.0,0.51021821]
[1765990272674,1.03923471,86630.0,86616.0,0.24244878]
[1765990272878,1.03923471,86630.0,86616.0,0.01154521]
[1765990273072,1.03923471,86630.0,86615.0,0.49867287]
[1765990273291,1.03923471,86630.0,86616.0,0.01154521]
[1765990273488,1.03923471,86630.0,86615.0,0.49867287]
[1765990273489,1.03923471,86630.0,86615.0,0.74112344]
[1765990273688,1.03923471,86630.0,86616.0,0.01154521]
[1765990273910,1.03923471,86630.0,86615.0,0.51021821]
[1765990274092,0.003,86638.0,86619.0,0.49706]
[1765990274275,0.0907,86639.0,86620.0,0.50860467]
[1765990274480,0.0907,86642.0,86620.0,0.49867287]
[1765990274718,1.0,86639.0,86624.0,0.24242668]
[1765990274931,0.3976,86639.0,86624.0,0.01315701]
[1765990275088,0.3976,86639.0,86624.0,0.49867287]
[1765990275290,0.002,86638.0,86624.0,0.49867287]
[1765990275539,0.6568,86639.0,86625.0,0.01154401]
[1765990275713,0.6568,86639.0,86624.0,0.49867287]
[1765990275930,0.001,86639.0,86624.0,0.49867287]
[1765990276979,0.001,86639.0,86624.0,0.51021701]
[1765990277111,1.03923471,86640.0,86624.0,0.49867287]
[1765990277315,0.001,86638.0,86624.0,0.49867287]
[1765990277693,1.03923471,86640.0,86625.0,0.01154401]
[1765990277897,0.001,86639.0,86625.0,0.01154401]
[1765990278115,0.001,86639.0,86626.0,0.49706]
[1765990278322,1.0,86644.0,86626.0,0.49706]
[1765990278523,0.001,86638.0,86626.0,0.49867287]
[1765990278728,0.0907,86646.0,86626.0,0.23249029]
[1765990278930,0.0907,86646.0,86626.0,0.24403383]
[1765990279138,0.0907,86646.0,86627.0,0.49706]
[1765990279342,0.0907,86646.0,86627.0,0.49867287]
[1765990279724,0.0907,86646.0,86627.0,0.00161287]
[1765990279725,1.03923471,86640.0,86627.0,0.00161287]
[1765990280343,0.001,86639.0,86622.0,0.01154441]
[1765990280570,0.001,86639.0,86619.0,0.01154481]
[1765990280571,1.03923471,86640.0,86621.0,0.72795067]
[1765990280746,1.03923471,86640.0,86624.0,0.01154414]
[1765990280956,1.04023471,86640.0,86621.0,0.49706]
[1765990281157,0.01856,86641.0,86621.0,0.49706]
[1765990281362,0.02843623,86646.0,86628.0,0.10525]
[1765990281570,1.03923471,86650.0,86632.0,0.01154307]
[1765990281956,1.03923471,86650.0,86634.0,0.01154281]
[1765990282153,0.03068612,86647.0,86632.0,0.01154307]
[1765990282358,0.00146958,86647.0,86632.0,0.01154307]
[1765990282554,0.00146958,86647.0,86630.0,0.23086635]
[1765990282769,1.03923471,86640.0,86622.0,0.23088294]
[1765990282990,1.03923471,86640.0,86623.0,0.01154427]
[1765990283196,1.03923471,86640.0,86626.0,0.01154387]
[1765990283394,1.03923471,86640.0,86625.0,0.49706]
[1765990283597,1.77051471,86640.0,86619.0,0.01154481]
[1765990283800,1.77212758,86640.0,86620.0,0.01154467]
[1765990284000,1.77212758,86640.0,86621.0,0.01154454]
[1765990284215,1.04084758,86640.0,86623.0,0.01154427]
[1765990284400,2.87e-06,86640.0,86627.0,0.49706]
[1765990284838,0.00100287,86640.0,86627.0,0.49706]
[1765990284996,0.00100287,86640.0,86630.0,0.49706]
[1765990285198,0.00100287,86640.0,86630.0,0.49867]
[1765990285199,2.87e-06,86640.0,86630.0,0.49867]
[1765990285399,0.60062,86658.0,86628.0,0.01154361]
[1765990285400,0.0907,86659.0,86642.0,0.01154174]
[1765990285604,0.0907,86659.0,86643.0,0.50860161]
[1765990285832,0.0907,86659.0,86648.0,0.23081892]
[1765990286027,1.03923471,86670.0,86649.0,0.49706]
[1765990286191,0.01856,86669.0,86656.0,0.01153988]
[1765990286387,0.01856,86669.0,86656.0,0.00161]
[1765990286629,0.50992,86664.0,86639.0,0.49706]
[1765990286830,0.001,86640.0,86631.0,0.49706]
[1765990286988,1.03923471,86653.0,86624.0,0.0907]
[1765990286989,1.0,86650.0,86624.0,0.0907]
[1765990287198,1.0,86650.0,86624.0,0.58937]
[1765990287393,1.0,86650.0,86624.0,0.60091414]
[1765990287601,0.81378718,86650.0,86626.0,0.49706]
[1765990287819,0.001,86640.0,86626.0,0.49867]
[1765990288291,1.13196666,86650.0,86626.0,0.49867]
[1765990288499,1.13396666,86650.0,86626.0,0.49867]
[1765990288708,1.13396666,86650.0,86627.0,0.49706]
[1765990288911,0.01153735,86675.0,86643.0,0.49706]
[1765990289135,1.0,86668.0,86644.0,0.50860148]
[1765990289340,0.0907,86667.0,86644.0,0.49867]
[1765990289693,0.0907,86659.0,86644.0,0.49867]
[1765990290253,0.0907,86659.0,86644.0,0.00161]
[1765990290453,0.0907,86659.0,86610.0,0.55253715]
[1765990290454,0.0907,86652.0,86627.0,0.49706]
[1765990290664,1.86324666,86650.0,86627.0,0.49706]
[1765990290865,1.04126666,86640.0,86627.0,0.49706]
[1765990291243,1.04126666,86640.0,86618.0,0.72795633]
[1765990291447,0.73128,86647.0,86618.0,0.52877494]
[1765990291677,1.04126666,86640.0,86620.0,0.49706]
[1765990291834,1.04126666,86640.0,86620.0,0.49867]
[1765990292033,1.04126666,86640.0,86622.0,0.01154441]
[1765990292258,1.04126666,86640.0,86622.0,0.00161]
[1765990292457,1.04126666,86632.0,86622.0,0.00161]
[1765990292862,1.04126666,86632.0,86627.0,0.003]
[1765990293062,1.04126666,86632.0,86596.0,0.49706]
[1765990293063,0.50992,86624.0,86596.0,0.49706]
[1765990293267,0.73128,86605.0,86580.0,0.0001]
[1765990293627,0.01856,86604.0,86581.0,0.49706]
[1765990294046,0.01856,86604.0,86580.0,0.0001]
[1765990294047,1.04126666,86591.0,86580.0,0.0001]
[1765990294188,0.01856,86604.0,86580.0,0.0001]
[1765990294189,1.77254666,86600.0,86580.0,0.0001]
[1765990294411,1.0,86599.0,86580.0,0.0001]
[1765990294620,1.0,86599.0,86581.0,0.49706]
[1765990295217,1.0,86599.0,86581.0,0.50860987]
[1765990295423,0.71079388,86591.0,86581.0,0.49706]
[1765990295824,0.71079388,86591.0,86582.0,0.01154974]
[1765990296009,1.0,86599.0,86581.0,0.50860987]
[1765990296212,1.0,86599.0,86582.0,0.01154974]
[1765990296462,1.0,86599.0,86582.0,0.00161]
[1765990296863,0.71079388,86592.0,86582.0,0.00261]
[1765990297301,1.0,86603.0,86582.0,0.00161]
[1765990297430,0.71079388,86592.0,86582.0,0.00161]
[1765990298268,0.53830329,86592.0,86582.0,0.00161]
[1765990298848,0.53830329,86592.0,86591.0,0.0007943]
[1765990299058,0.01856,86599.0,86591.0,0.0007943]
[1765990299268,0.01856,86599.0,86583.0,0.01154961]
[1765990299475,0.01856,86599.0,86592.0,0.49706]
[1765990299476,1.0,86599.0,86592.0,0.49706]
[1765990299689,0.0907,86609.0,86594.0,0.01154814]
[1765990299893,0.0907,86609.0,86593.0,0.49706]
[1765990300096,0.0907,86609.0,86593.0,0.49867]
[1765990300518,0.71079388,86603.0,86593.0,0.00161]
[1765990301209,0.71079388,86603.0,86593.0,0.00261]
[1765990301852,0.0907,86609.0,86593.0,0.01415827]
[1765990302063,0.0907,86609.0,86595.0,0.01154801]
[1765990302266,0.0907,86609.0,86596.0,0.01154787]
[1765990302474,0.0907,86609.0,86595.0,0.00161]
[1765990302882,0.0907,86609.0,86597.0,0.24250004]
[1765990303094,0.01154294,86633.0,86597.0,0.24250004]
[1765990303095,0.01811183,86627.0,86610.0,0.23091995]
[1765990303343,0.71079388,86630.0,86612.0,0.74958442]
[1765990303644,0.71079388,86622.0,86612.0,0.00161]
[1765990304068,0.71079388,86630.0,86623.0,0.01154427]
[1765990304298,0.68654,86639.0,86622.0,0.01154441]
[1765990304495,0.01351176,86641.0,86623.0,0.52028]
[1765990304496,0.71079388,86640.0,86623.0,0.52028]
[1765990304696,0.71079388,86640.0,86623.0,0.53182427]
[1765990304897,0.0907,86639.0,86623.0,0.00161]
[1765990305108,0.0907,86639.0,86624.0,0.51867]
[1765990305411,0.0907,86639.0,86624.0,0.52028]
[1765990305970,0.01856,86648.0,86624.0,0.53182414]
[1765990306172,0.0907,86639.0,86626.0,0.53021387]
[1765990306375,0.71079388,86640.0,86629.0,0.01154347]
[1765990306743,0.52444,86656.0,86628.0,0.51867]
[1765990306744,0.69807761,86673.0,86642.0,0.01154174]
[1765990306952,1.0,86669.0,86645.0,0.01154134]
[1765990307169,0.0105435,86668.0,86645.0,0.00161]
[1765990307408,0.71079388,86660.0,86645.0,0.00161]
[1765990307616,0.68654,86653.0,86640.0,0.01856]
[1765990307830,1.39733388,86650.0,86630.0,0.01154334]
[1765990308045,1.39733388,86650.0,86631.0,0.01154321]
[1765990308252,1.39733388,86650.0,86631.0,0.01315321]
[1765990308472,0.71079388,86660.0,86640.0,0.01154201]
[1765990308708,0.10926,86659.0,86637.0,0.51867]
[1765990308932,0.71079388,86650.0,86633.0,0.01154294]
[1765990309153,0.71079388,86650.0,86633.0,0.26257077]
[1765990309368,0.10926,86659.0,86637.0,0.01154241]
[1765990309577,0.0907,86657.0,86636.0,0.2423919]
[1765990309749,1.0,86656.0,86637.0,0.00161]
[1765990309950,0.5014,86656.0,86637.0,0.00261]
[1765990310157,0.3363,86656.0,86637.0,0.00261]
[1765990310502,0.3363,86656.0,86637.0,0.00161]
[1765990310727,0.0907,86658.0,86639.0,0.01154214]
[1765990310865,0.0907,86658.0,86637.0,0.00161]
[1765990310866,0.2501,86657.0,86637.0,0.00161]
[1765990311084,1.0,86656.0,86637.0,0.00161]
[1765990311284,0.68654,86657.0,86637.0,0.01315241]
[1765990311488,0.0907,86658.0,86638.0,0.01154227]
[1765990311691,0.0907,86657.0,86638.0,0.00161]
[1765990311892,0.0907,86655.0,86641.0,0.01154187]
[1765990312069,0.0907,86655.0,86639.0,0.01154214]
[1765990312274,0.68654,86649.0,86639.0,0.00161]
[1765990312482,1.21098,86648.0,86624.0,0.01154414]
[1765990312684,1.21098,86648.0,86620.0,0.51867]
[1765990312685,0.71079388,86642.0,86620.0,0.51867]
[1765990312909,0.68654,86641.0,86622.0,0.01154441]
[1765990313113,0.01856,86644.0,86627.0,0.51867]
[1765990313361,0.52444,86655.0,86627.0,0.51867]
[1765990313362,0.52444,86667.0,86642.0,0.01154174]
[1765990313533,0.0907,86659.0,86642.0,0.00161]
[1765990313734,0.0907,86659.0,86643.0,0.23083226]
[1765990313891,0.0907,86659.0,86643.0,0.00161]
[1765990314090,0.0907,86659.0,86646.0,0.24236431]
[1765990314289,0.0907,86659.0,86647.0,0.24236102]
[1765990314515,0.01856,86665.0,86652.0,0.01154041]
[1765990314721,0.01856,86665.0,86647.0,0.00161]
[1765990314722,0.01856,86665.0,86651.0,0.01154054]
[1765990314930,3.92e-06,86655.0,86654.0,0.51867]
[1765990315142,0.68654,86677.0,86654.0,0.51867]
[1765990315143,0.01856,86676.0,86654.0,0.00161]
[1765990315335,0.01856,86682.0,86664.0,0.51867]
[1765990315549,1.39733388,86680.0,86664.0,0.00161]
[1765990315748,1.0,86678.0,86664.0,0.00161]
[1765990315998,0.01856,86682.0,86665.0,0.53020868]
[1765990316326,0.68654,86693.0,86666.0,0.51867]
[1765990316525,1.0,86679.0,86666.0,0.00161]
[1765990316725,0.2117,86678.0,86666.0,0.00161]
[1765990316852,0.01856,86686.0,86667.0,0.01153841]
[1765990317051,0.0907,86689.0,86668.0,0.53723]
[1765990317276,0.7051,86689.0,86668.0,0.00161]
[1765990317478,0.01856,86689.0,86674.0,0.01153748]
[1765990317652,0.01856,86689.0,86674.0,0.01314748]
[1765990317871,0.01856,86689.0,86674.0,0.00161]
[1765990318073,0.77724,86688.0,86674.0,0.00161]
[1765990319129,0.001,86686.0,86674.0,0.00161]
[1765990319329,0.77724,86688.0,86674.0,0.00161]
[1765990319534,0.52444,86687.0,86663.0,0.01856]
[1765990319776,0.68654,86685.0,86663.0,0.02017]
[1765990320761,0.68654,86683.0,86663.0,0.02017]
[1765990320931,0.00031735,86665.0,86663.0,0.02017]
[1765990321137,0.71079388,86680.0,86663.0,0.00161]
[1765990321339,0.00028562,86664.0,86663.0,0.00161]
[1765990322062,0.001,86685.0,86664.0,0.01153881]
[1765990322269,1.23523388,86680.0,86664.0,0.00161]
[1765990322470,0.23073639,86679.0,86664.0,0.00161]
[1765990322677,0.00025384,86672.0,86663.0,0.002]
[1765990323237,0.00025384,86672.0,86671.0,0.76959769]
[1765990323240,3.84e-06,86672.0,86671.0,0.76959769]
[1765990323436,3.84e-06,86672.0,86666.0,0.01153855]
[1765990323437,1.0,86706.0,86683.0,0.53020628]
[1765990323640,1.0,86706.0,86681.0,0.02017]
[1765990323641,0.0907,86705.0,86681.0,0.02017]
[1765990323848,0.77724,86705.0,86686.0,0.01153588]
[1765990324056,0.0907,86703.0,86681.0,0.02017]
[1765990324268,0.52444,86697.0,86670.0,0.01153801]
[1765990324402,0.71079388,86690.0,86665.0,0.01153868]
[1765990324604,0.68654,86684.0,86659.0,0.03368176]
[1765990324815,0.68654,86684.0,86648.0,0.02017]
[1765990324816,0.68654,86675.0,86648.0,0.02017]
[1765990325012,0.52444,86668.0,86642.0,0.01154174]
[1765990325211,1.0,86667.0,86638.0,0.01856]
[1765990325531,0.68654,86660.0,86644.0,0.01154148]
[1765990325730,0.00161287,86660.0,86642.0,0.23083331]
[1765990325931,0.00161287,86660.0,86644.0,0.01154148]
[1765990326110,0.00161287,86660.0,86646.0,0.01154121]
[1765990326316,0.00161287,86660.0,86646.0,0.24236458]
[1765990326724,0.00161287,86660.0,86643.0,0.51867]
[1765990327041,0.00161287,86660.0,86644.0,0.01154148]
[1765990327246,0.71240675,86660.0,86632.0,0.01154307]
[1765990327454,1.0,86657.0,86632.0,0.01154307]
[1765990327655,0.7051,86656.0,86634.0,0.23085604]
[1765990327854,0.0907,86659.0,86644.0,0.01154148]
[1765990328054,0.00100287,86660.0,86651.0,0.01154054]
[1765990328235,2.87e-06,86660.0,86652.0,0.01154041]
[1765990328454,2.87e-06,86660.0,86659.0,0.75107251]
[1765990328662,0.01856,86684.0,86673.0,0.24228961]
[1765990328886,0.01856,86688.0,86678.0,0.23073905]
[1765990329044,1.39733388,86700.0,86681.0,0.50823]
[1765990329045,7e-07,86684.0,86681.0,0.50823]
[1765990329288,7e-07,86684.0,86677.0,0.01153708]
[1765990329289,1.21918,86724.0,86697.0,0.01153442]
[1765990329482,1.0,86719.0,86698.0,0.50823]
[1765990329696,1.0,86709.0,86697.0,0.00161287]
[1765990330102,1.0,86709.0,86634.0,2.88567777]
[1765990330103,0.73369,86706.0,86681.0,0.01856]
[1765990330304,0.73369,86706.0,86681.0,0.00161287]
[1765990330515,1.0,86705.0,86683.0,0.01153628]
[1765990330730,1.0,86705.0,86681.0,0.01314942]
[1765990330731,1.0,86705.0,86681.0,0.00161287]
[1765990330953,1.0,86703.0,86681.0,0.00161287]
[1765990331700,1.0,86703.0,86681.0,0.01314942]
[1765990331904,1.0,86703.0,86682.0,0.01153642]
[1765990332107,1.0,86703.0,86691.0,0.24223879]
[1765990332108,0.001,86703.0,86691.0,0.24223879]
[1765990332449,0.001,86703.0,86693.0,0.49039]
[1765990332663,0.001,86703.0,86691.0,0.00161287]
[1765990333077,0.69156,86707.0,86691.0,0.00161287]
[1765990333558,0.0907,86711.0,86691.0,0.00161287]
[1765990333776,0.70965278,86732.0,86708.0,0.01153296]
[1765990334014,0.69156,86732.0,86708.0,0.00161287]
[1765990334227,0.01856,86731.0,86708.0,0.24380346]
[1765990334431,0.0907,86727.0,86708.0,0.00161287]
[1765990334840,0.71079388,86720.0,86696.0,0.01153455]
[1765990335015,0.0907,86725.0,86701.0,0.49039]
[1765990335217,0.0907,86725.0,86704.0,0.01153349]
[1765990335418,0.0907,86725.0,86707.0,0.01153309]
[1765990335640,1.0,86724.0,86708.0,0.001]
[1765990336162,1.0,86724.0,86707.0,0.00161287]
[1765990336603,0.48877,86729.0,86697.0,0.01351176]
[1765990336604,0.48877,86769.0,86741.0,0.01152857]
[1765990336800,0.01351176,86766.0,86741.0,0.00161287]
[1765990336999,0.71079388,86760.0,86741.0,0.00161287]
[1765990337207,0.48877,86764.0,86746.0,0.23055683]
[1765990337411,1.0,86761.0,86746.0,0.0115279]
[1765990337619,1.0,86761.0,86741.0,0.23218384]
[1765990337620,0.1606,86761.0,86741.0,0.01314144]
[1765990337827,0.23051692,86762.0,86741.0,0.00161287]
[1765990338039,0.48877,86759.0,86741.0,0.00161287]
[1765990338243,0.71079388,86751.0,86726.0,0.0907]
[1765990338452,0.71079388,86751.0,86732.0,0.01856]
[1765990338669,0.24205397,86758.0,86732.0,0.02017287]
[1765990338670,0.69156,86754.0,86732.0,0.02017287]
[1765990338871,1.18033,86754.0,86732.0,0.00161287]
[1765990339083,1.18033,86754.0,86733.0,0.01152963]
[1765990339287,1.18033,86754.0,86732.0,0.01314263]
[1765990339288,1.18033,86754.0,86732.0,0.00161287]
[1765990339705,1.89112388,86760.0,86732.0,0.01544859]
[1765990339918,1.89112388,86760.0,86732.0,0.00161287]
[1765990339919,1.48877,86756.0,86732.0,0.00161287]
[1765990340126,0.00155423,86733.0,86732.0,0.00161287]
[1765990341168,0.00155423,86733.0,86719.0,0.01852]
[1765990341379,1.0,86740.0,86719.0,0.01852]
[1765990341584,0.01152764,86748.0,86723.0,0.01153096]
[1765990341585,0.48877,86748.0,86723.0,0.01153096]
[1765990341787,0.0907,86747.0,86732.0,0.002]
[1765990341994,0.0907,86747.0,86729.0,0.01153016]
[1765990342209,0.0907,86747.0,86737.0,0.23058153]
[1765990342421,0.48877,86758.0,86735.0,0.01852]
[1765990342422,0.0907,86754.0,86735.0,0.01852]
[1765990342636,0.0907,86759.0,86729.0,0.00161287]
[1765990342637,0.71079388,86750.0,86729.0,0.00161287]
[1765990343055,0.00199998,86780.0,86716.0,0.01153189]
[1765990343056,0.71079388,86740.0,86726.0,0.01852]
[1765990343264,0.48877,86744.0,86718.0,0.01153163]
[1765990343265,1.0,86743.0,86723.0,0.01852]
[1765990343467,1.0,86743.0,86720.0,0.01153136]
[1765990343673,1.0,86743.0,86722.0,0.01153109]
[1765990343880,0.01852,86751.0,86735.0,0.01152937]
[1765990344090,0.0907,86756.0,86736.0,0.24211185]
[1765990344298,0.0907,86756.0,86736.0,0.00161287]
[1765990344503,0.58047,86754.0,86736.0,0.00161287]
[1765990344719,0.01152737,86750.0,86736.0,0.00161287]
[1765990344927,1.48877,86743.0,86718.0,0.01852]
[1765990345139,0.01152937,86735.0,86713.0,0.13324]
[1765990345345,0.01152937,86735.0,86711.0,0.01351176]
[1765990345346,0.71079388,86730.0,86711.0,0.01852]
[1765990345556,0.71079388,86730.0,86711.0,0.01153256]
[1765990345765,0.0115283,86743.0,86711.0,0.01153256]
[1765990345766,0.0907,86744.0,86720.0,0.01153136]
[1765990345981,0.0907,86746.0,86730.0,0.01153003]
[1765990346188,0.0907,86746.0,86726.0,0.01153056]
[1765990346390,0.0907,86746.0,86723.0,0.01153096]
[1765990346597,0.0907,86745.0,86724.0,0.24214582]
[1765990347010,0.0907,86745.0,86725.0,0.0115307]
[1765990347215,0.0907,86745.0,86725.0,0.00161287]
[1765990347416,0.0013324,86726.0,86725.0,0.00161287]
[1765990347861,2.4e-06,86726.0,86725.0,0.00161287]
[1765990348072,2.4e-06,86726.0,86707.0,0.24219329]
[1765990348334,0.0907,86739.0,86707.0,0.24219329]
[1765990348335,0.71079388,86730.0,86710.0,0.2306539]
[1765990348592,0.0907,86739.0,86713.0,0.12791]
[1765990348759,1.0,86738.0,86725.0,0.002]
[1765990348954,0.6489,86737.0,86715.0,0.01153203]
[1765990349177,0.6489,86737.0,86714.0,0.24217528]
[1765990349372,0.4383,86737.0,86714.0,0.00161287]
[1765990349579,0.1583,86737.0,86714.0,0.00161287]
[1765990349775,1.0,86733.0,86714.0,0.00161287]
[1765990349921,0.1522,86733.0,86717.0,0.01153176]
[1765990350123,0.1522,86733.0,86714.0,0.00161287]
[1765990350124,0.1597,86734.0,86714.0,0.00161287]
[1765990350331,0.48877,86733.0,86714.0,0.00161287]
[1765990350574,0.69156,86734.0,86714.0,0.00161287]
[1765990350728,0.4276,86733.0,86716.0,0.24216983]
[1765990350926,0.0907,86739.0,86716.0,0.00161287]
[1765990351172,0.01808547,86745.0,86721.0,0.01153123]
[1765990351173,0.10878547,86745.0,86721.0,0.01153123]
[1765990351370,0.10878547,86745.0,86723.0,0.01153096]
[1765990351371,0.0907,86745.0,86723.0,0.01153096]
[1765990351543,0.0907,86745.0,86724.0,0.12791]
[1765990351749,0.0907,86745.0,86724.0,0.12952287]
[1765990351951,0.0907,86745.0,86725.0,0.0115307]
[1765990352301,0.647,86747.0,86726.0,0.01153056]
[1765990352634,0.647,86747.0,86726.0,0.00161287]
[1765990352833,0.0907,86745.0,86726.0,0.00161287]
[1765990353063,0.0907,86745.0,86726.0,0.01314343]
[1765990353270,0.0907,86745.0,86731.0,0.0115299]
[1765990353505,0.0907,86745.0,86731.0,0.00161287]
[1765990353703,0.01852,86756.0,86736.0,0.24211399]
[1765990353874,0.69156,86758.0,86738.0,0.01152897]
[1765990354058,0.83997,86756.0,86736.0,0.00161287]
[1765990354261,1.0,86755.0,86736.0,0.00161287]
[1765990354472,0.71079388,86750.0,86736.0,0.00161287]
[1765990354657,0.69156,86758.0,86736.0,0.00161287]
[1765990354857,0.71079388,86750.0,86736.0,0.00161287]
[1765990355262,0.71079388,86750.0,86726.0,0.01153056]
[1765990355263,0.48877,86748.0,86719.0,0.01153149]
[1765990355487,0.71079388,86740.0,86716.0,0.01153189]
[1765990355686,0.71079388,86740.0,86719.0,0.01852]
[1765990356137,0.71079388,86740.0,86716.0,0.03721]
[1765990356138,1.0,86739.0,86716.0,0.03721]
[1765990356292,0.71079388,86740.0,86716.0,0.03721]
[1765990356496,0.0907,86738.0,86722.0,0.04874109]
[1765990357167,0.01351176,86746.0,86726.0,0.03721]
[1765990357389,0.01052273,86745.0,86726.0,0.03721]
[1765990357818,0.01052273,86744.0,86729.0,0.01153016]
[1765990357991,0.10922,86749.0,86730.0,0.23059922]
[1765990358197,0.01152591,86761.0,86728.0,0.28132749]
[1765990358198,2.69e-06,86748.0,86739.0,0.23057678]
[1765990358416,0.03036595,86774.0,86728.0,0.01351176]
[1765990358417,0.01852,86769.0,86753.0,0.2420639]
[1765990358559,0.23048644,86773.0,86743.0,0.0115283]
[1765990358775,0.23048644,86773.0,86740.0,0.01852]
[1765990358776,1.0,86768.0,86740.0,0.01852]
[1765990359009,1.0,86767.0,86740.0,0.0115287]
[1765990359221,0.00161287,86767.0,86741.0,0.01852]
[1765990359384,0.48877,86765.0,86736.0,0.01152923]
[1765990359741,0.48877,86765.0,86734.0,0.01852]
[1765990359742,0.00035105,86737.0,86734.0,0.01852]
[1765990359863,0.00035105,86737.0,86700.0,1.05238987]
[1765990359864,0.00161287,86737.0,86720.0,0.01153136]
[1765990360069,0.00028767,86735.0,86707.0,0.01153309]
[1765990360266,1.03887811,86730.0,86707.0,0.25062186]
[1765990360521,0.57947,86733.0,86707.0,0.01996]
[1765990360684,1.03887811,86720.0,86707.0,0.00144]
[1765990360881,1.03952263,86720.0,86696.0,0.01153455]
[1765990361078,1.03952263,86720.0,86696.0,0.01297455]
[1765990361322,1.03952263,86720.0,86697.0,0.01153442]
[1765990361528,1.03952263,86720.0,86697.0,0.24366244]
[1765990361729,1.52528263,86720.0,86697.0,0.00144]
[1765990361948,0.72421,86723.0,86697.0,0.00144]